bitfinex/quotes_ETHUSD_20250625
["timestamp","ask_amount","ask_price","bid_price","bid_amount"]
[1750859242601,0.8044,2439.8,2439.3,4.09938833]
[1750859242922,0.7867,2439.4,2438.8,4.10027339]
[1750859243124,0.7867,2439.4,2439.3,4.09953675]
[1750859243312,2.9697,2439.4,2439.2,4.09966864]
[1750859243518,2.9697,2439.4,2439.1,4.09982429]
[1750859243735,2.9697,2439.4,2438.4,10.0]
[1750859243916,2.9697,2439.4,2439.1,4.09976019]
[1750859244119,0.7867,2439.4,2439.3,4.09953675]
[1750859245631,0.799,2439.8,2439.7,4.09886461]
[1750859246021,0.799,2439.8,2439.5,4.0991973]
[1750859246233,0.799,2439.8,2438.8,4.10037723]
[1750859246408,5.72892831,2439.7,2439.1,4.0997962]
[1750859246606,0.8064,2439.4,2438.5,4.10088168]
[1750859246825,0.8064,2439.4,2439.3,4.09953675]
[1750859247030,0.8071,2439.8,2439.7,4.09871132]
[1750859247344,2.184,2440.6,2440.5,4.09736247]
[1750859247499,2.184,2440.6,2439.5,4.09920065]
[1750859247500,0.8071,2440.8,2439.5,4.09920065]
[1750859247704,0.8071,2440.8,2440.2,4.09791902]
[1750859247901,4.85699315,2440.7,2440.0,4.0982281]
[1750859248105,10.0,2440.5,2439.5,4.09920065]
[1750859248337,2.184,2440.4,2440.3,4.09775451]
[1750859248538,2.184,2440.5,2440.3,4.09775451]
[1750859248836,4.85692869,2440.7,2439.4,4.09936869]
[1750859249139,2.184,2440.6,2440.1,4.09816353]
[1750859249339,0.2048,2440.2,2440.0,4.0982856]
[1750859249537,0.2048,2440.2,2440.1,4.09819269]
[1750859249736,2.184,2440.5,2440.4,4.09752433]
[1750859249937,10.0,2440.6,2440.5,4.09752099]
[1750859250267,10.0,2440.6,2440.4,4.09754425]
[1750859250537,10.0,2440.6,2440.4,0.2048]
[1750859250836,10.0,2440.6,2440.5,4.09752099]
[1750859251543,0.55,2440.5,2440.1,0.2048]
[1750859251754,10.0,2440.3,2439.3,4.09953675]
[1750859252048,0.2048,2440.0,2439.6,4.30377542]
[1750859252204,0.2048,2440.0,2439.6,0.2048]
[1750859252728,0.55,2439.9,2439.3,4.09951929]
[1750859252926,0.2048,2439.7,2439.4,4.09926474]
[1750859253134,0.7753,2440.1,2439.8,4.09853]
[1750859253135,10.7753,2440.1,2439.8,4.09853]
[1750859253320,0.2048,2439.9,2439.8,4.09869661]
[1750859253810,10.7753,2440.1,2439.1,4.09986279]
[1750859253811,0.7753,2440.1,2440.0,4.09836065]
[1750859254424,0.7753,2440.1,2439.9,4.09845801]
[1750859254647,0.7753,2440.1,2439.7,4.09877445]
[1750859254855,0.2048,2440.0,2439.6,0.2048]
[1750859255051,0.55,2440.0,2439.0,4.09999484]
[1750859255260,0.55,2440.0,2439.4,4.09935196]
[1750859255261,0.2048,2439.7,2439.4,4.09935196]
[1750859255413,0.2048,2439.7,2439.5,4.09919694]
[1750859255831,12.14546502,2440.0,2439.4,4.09921871]
[1750859256118,0.2048,2439.6,2439.5,4.0990713]
[1750859256452,12.3898,2440.0,2439.7,4.09870394]
[1750859256650,12.3898,2440.0,2439.5,0.2048]
[1750859257160,12.3898,2440.0,2438.7,12.014]
[1750859257161,4.09852862,2439.9,2438.9,4.10020911]
[1750859257319,0.2048,2439.7,2439.5,4.09910196]
[1750859257627,0.2048,2439.7,2439.2,0.2048]
[1750859257628,0.2048,2439.7,2439.2,4.30444523]
[1750859257831,4.89726545,2439.6,2438.6,4.10071352]
[1750859258152,4.89726545,2439.6,2438.5,0.8043]
[1750859258153,10.55,2439.5,2438.5,0.8043]
[1750859258460,6.28438664,2439.4,2438.9,4.10012752]
[1750859258773,0.7981,2439.2,2438.6,4.10058445]
[1750859258968,10.0,2439.1,2438.8,4.10028847]
[1750859259275,10.0,2439.1,2438.7,4.10045982]
[1750859259423,10.0,2439.1,2438.4,4.10099287]
[1750859259626,10.0,2439.1,2438.4,4.10101219]
[1750859259919,0.7981,2439.2,2438.8,4.10030938]
[1750859260123,0.7981,2439.2,2438.2,0.51168112]
[1750859260423,0.7981,2439.2,2438.8,4.10023658]
[1750859260618,0.7981,2439.2,2438.7,4.10046025]
[1750859260845,4.10016825,2439.0,2438.3,4.10115499]
[1750859261157,0.7809,2438.8,2438.5,4.1007217]
[1750859261352,0.7809,2438.8,2438.2,0.51168112]
[1750859261353,4.10054537,2438.7,2438.2,0.51168112]
[1750859261536,4.10054537,2438.7,2438.2,4.61304616]
[1750859261747,1.3309,2438.5,2438.2,0.51168112]
[1750859261989,1.3309,2438.5,2438.2,4.61300618]
[1750859262259,0.55,2438.4,2438.2,0.10233622]
[1750859262426,5.41565134,2438.4,2437.8,4.10189142]
[1750859262625,10.0,2438.3,2437.4,4.8860133]
[1750859262857,10.0,2438.3,2437.9,4.10186823]
[1750859263051,10.0,2438.3,2437.8,4.10194544]
[1750859263256,7.482,2438.2,2437.0,4.86460409]
[1750859263459,9.36164696,2438.2,2437.0,4.86460409]
[1750859263624,11.3737,2438.1,2437.6,4.10239451]
[1750859263829,2.213,2438.0,2437.3,4.10290075]
[1750859264030,10.8274,2438.4,2437.8,4.10192127]
[1750859264224,0.55,2438.3,2437.0,0.7613]
[1750859264530,0.8274,2438.2,2437.0,10.7613]
[1750859264727,0.8274,2437.9,2437.2,4.10293346]
[1750859264988,10.0,2437.8,2436.8,4.10372054]
[1750859265313,2.3203252,2437.9,2436.9,4.10342638]
[1750859265561,9.695,2437.8,2437.4,4.10260327]
[1750859265730,14.10235642,2437.7,2436.6,2.9767]
[1750859265923,10.0,2437.7,2437.5,4.10247295]
[1750859266130,10.0,2437.7,2436.6,2.9767]
[1750859266131,0.8274,2437.9,2437.6,4.10239579]
[1750859266324,0.8274,2437.9,2437.1,4.10323745]
[1750859266549,0.8274,2437.9,2437.6,4.10232614]
[1750859266730,0.8274,2437.9,2437.8,4.10205923]
[1750859267262,0.8274,2437.9,2436.6,2.9767]
[1750859267263,0.8274,2437.9,2437.2,4.1029537]
[1750859267426,10.4514,2438.2,2436.9,4.10357421]
[1750859267623,0.7644,2438.2,2438.1,4.10155448]
[1750859267840,10.7644,2438.2,2438.1,4.10155448]
[1750859268042,10.7644,2438.2,2437.9,4.10178693]
[1750859268043,0.7644,2438.5,2438.2,4.10138626]
[1750859268240,10.9692,2438.5,2438.1,0.2048]
[1750859268532,10.9692,2438.5,2436.8,0.55]
[1750859268533,0.55,2438.2,2437.8,0.2048]
[1750859268733,0.55,2438.2,2437.1,0.7732]
[1750859268734,0.2048,2437.9,2437.6,4.10231493]
[1750859269435,0.2048,2437.9,2437.5,4.10254184]
[1750859269627,10.0,2437.8,2437.5,4.10255617]
[1750859269834,0.2048,2437.7,2437.2,0.2048]
[1750859270063,0.2048,2437.7,2437.6,4.10239579]
[1750859270574,0.2048,2437.7,2437.4,4.10259786]
[1750859270859,0.2048,2437.7,2437.5,4.1024021]
[1750859271060,0.2048,2437.7,2437.2,0.2048]
[1750859271061,0.2048,2437.7,2437.6,4.10239579]
[1750859272153,0.2048,2437.7,2437.5,4.10254685]
[1750859272154,12.214,2437.9,2437.5,4.10245476]
[1750859272362,12.621532,2437.9,2437.6,4.10229558]
[1750859272659,12.214,2437.9,2437.6,4.10229558]
[1750859272965,10.0,2437.9,2437.8,4.10205923]
[1750859273532,10.0,2437.9,2437.7,4.10212734]
[1750859273863,0.2048,2437.8,2437.7,4.10212734]
[1750859274970,10.0,2437.9,2437.7,4.1021424]
[1750859275150,10.0,2437.9,2437.8,4.10205923]
[1750859275373,10.0,2437.9,2437.7,4.10214463]
[1750859275584,10.2048,2437.9,2437.8,4.10205923]
[1750859275893,0.2048,2437.9,2437.8,4.10205923]
[1750859276194,0.9692,2438.0,2437.8,4.10205923]
[1750859276356,0.9692,2438.0,2437.7,4.10213689]
[1750859276698,0.7847,2438.4,2437.0,0.7717]
[1750859276988,0.7847,2438.4,2438.0,4.10172272]
[1750859277152,0.2048,2438.6,2438.1,0.2048]
[1750859277351,0.7847,2438.7,2438.1,4.10151549]
[1750859277674,0.2048,2438.4,2438.3,4.10120504]
[1750859278179,10.7847,2438.7,2438.0,0.2048]
[1750859278180,0.2048,2438.6,2438.5,4.10088168]
[1750859278352,18.2377,2438.7,2437.7,4.89762448]
[1750859278553,0.2048,2438.5,2438.2,4.1012959]
[1750859279083,0.55,2438.6,2437.5,4.1024228]
[1750859279247,0.2048,2438.1,2437.9,4.10176729]
[1750859279670,0.2048,2438.1,2438.0,4.10172272]
[1750859279884,7.441,2438.3,2438.2,4.10138626]
[1750859280183,7.441,2438.3,2438.0,4.10160894]
[1750859280394,7.441,2438.3,2437.8,4.30676984]
[1750859280395,0.795,2438.1,2437.8,4.30676984]
[1750859280697,0.2048,2437.8,2437.6,4.10239579]
[1750859280899,0.2048,2437.8,2437.7,4.1022275]
[1750859281197,0.7872,2439.2,2439.1,4.09973406]
[1750859281498,0.7872,2439.2,2438.4,0.7602]
[1750859281499,0.8317,2439.6,2438.9,0.761]
[1750859281809,0.8317,2439.6,2438.6,4.10066258]
[1750859281810,2.214,2439.8,2438.6,4.10066258]
[1750859281811,4.09806599,2440.2,2438.6,4.10066258]
[1750859281813,0.8317,2440.3,2440.2,4.09792902]
[1750859282011,0.8317,2440.3,2439.5,0.761]
[1750859282170,0.8317,2440.3,2440.0,4.09833666]
[1750859282484,4.0989567,2439.7,2439.1,4.09986817]
[1750859282690,0.828,2439.5,2438.7,4.10054537]
[1750859282889,0.828,2439.5,2439.2,4.09955555]
[1750859283219,0.55,2439.5,2439.4,4.09936869]
[1750859283416,0.8139,2440.0,2439.1,0.8312]
[1750859283702,0.8139,2440.0,2439.8,4.0986339]
[1750859284197,0.8139,2440.0,2439.1,4.93094323]
[1750859284518,10.0,2440.3,2440.0,4.09829119]
[1750859284717,10.0,2440.3,2439.1,0.8312]
[1750859284718,0.7544,2440.2,2439.2,4.09970482]
[1750859284867,0.7544,2440.2,2439.1,0.8312]
[1750859284868,0.7544,2440.2,2440.1,4.09819269]
[1750859285367,0.8015,2440.6,2439.8,0.7945]
[1750859285566,0.8015,2440.6,2440.5,4.09752099]
[1750859285762,4.09562424,2441.7,2440.5,4.09752099]
[1750859285763,0.30298654,2442.0,2440.7,4.09706696]
[1750859285992,0.8015,2441.0,2440.7,4.09717364]
[1750859286192,0.8015,2441.0,2439.9,4.09852862]
[1750859286399,0.8015,2441.0,2440.3,4.09771905]
[1750859286595,0.8015,2441.0,2439.8,0.7945]
[1750859286772,0.55,2440.7,2439.9,4.09843655]
[1750859286966,9.688,2440.6,2440.1,4.09806094]
[1750859287199,0.7985,2441.9,2440.0,2.213]
[1750859287500,10.7985,2441.3,2440.6,4.0972311]
[1750859287699,10.7985,2441.3,2440.1,0.29775]
[1750859287700,0.55,2441.2,2440.1,0.29775]
[1750859287914,9.728,2441.2,2441.0,4.09667582]
[1750859288113,9.728,2441.2,2440.1,0.29775]
[1750859288314,10.0,2441.1,2440.1,0.29775]
[1750859288618,14.09661873,2441.1,2440.1,0.29775]
[1750859288782,10.0,2441.1,2440.1,0.29775]
[1750859289133,14.09658188,2441.1,2440.5,4.09748844]
[1750859289422,10.0,2441.1,2440.4,4.09764642]
[1750859289579,10.0,2441.1,2440.6,4.09726023]
[1750859289777,11.05265,2441.2,2440.0,2.9775]
[1750859290012,17.503,2441.2,2440.1,4.09819269]
[1750859290213,10.0,2441.1,2440.6,4.09726103]
[1750859290424,10.0,2441.1,2440.0,2.9775]
[1750859290425,10.0,2441.1,2440.0,10.7645]
[1750859290605,5.84708083,2441.0,2440.0,10.7645]
[1750859290921,11.7503,2441.0,2440.4,4.0976889]
[1750859291083,0.2048,2440.9,2440.5,0.2048]
[1750859291278,0.2048,2440.9,2440.5,4.30228303]
[1750859291482,0.2048,2440.9,2440.5,0.2048]
[1750859291719,0.2048,2440.9,2440.5,4.30229587]
[1750859292025,0.2048,2440.9,2440.5,0.2048]
[1750859292400,4.09712219,2440.8,2440.2,4.09792764]
[1750859292602,4.89437263,2440.6,2440.3,0.2048]
[1750859292801,0.797,2440.6,2440.3,0.2048]
[1750859293024,0.2048,2440.7,2440.3,0.2048]
[1750859293193,12.16251,2440.9,2440.4,0.2048]
[1750859293525,10.0,2440.5,2440.4,0.2048]
[1750859293682,10.2048,2440.7,2440.3,0.2048]
[1750859293888,10.2048,2440.7,2440.3,4.30263418]
[1750859294687,10.0,2440.7,2440.3,4.09783418]
[1750859294888,19.707,2440.8,2440.4,0.2048]
[1750859295095,19.707,2440.8,2440.4,4.30239649]
[1750859295326,9.707,2440.8,2440.4,4.30239649]
[1750859295491,0.967,2440.9,2440.4,0.2048]
[1750859295696,7.476,2440.9,2440.6,0.2048]
[1750859295904,0.2048,2441.0,2440.6,0.2048]
[1750859296107,0.2048,2441.0,2440.7,4.09717217]
[1750859296312,0.2048,2441.0,2440.6,4.3020361]
[1750859296514,0.2048,2441.0,2440.6,0.2048]
[1750859296736,0.8228,2441.2,2440.9,0.2048]
[1750859296737,18.2918,2441.2,2440.9,0.2048]
[1750859296904,18.2918,2441.2,2440.4,4.8757272]
[1750859296905,25.85341598,2441.2,2440.6,4.09725364]
[1750859297230,21.96176312,2441.2,2440.7,0.2048]
[1750859297399,18.4966,2441.2,2440.7,0.2048]
[1750859297808,18.2918,2441.2,2440.4,0.7781]
[1750859298115,4.30150125,2441.0,2440.6,0.2048]
[1750859298303,6.76567868,2441.0,2440.4,4.09762797]
[1750859298501,18.2918,2441.2,2440.4,0.2048]
[1750859298502,0.2048,2440.9,2440.4,0.2048]
[1750859298691,7.6618,2441.1,2440.7,4.30183261]
[1750859298893,18.4846,2441.2,2440.8,0.2048]
[1750859299248,11.0276,2441.2,2440.8,0.2048]
[1750859299519,8.39936802,2442.4,2441.2,4.09634326]
[1750859299520,7.457,2441.4,2441.2,4.09634326]
[1750859299696,7.457,2441.4,2441.2,4.09626214]
[1750859300019,18.2513,2441.6,2441.2,4.09626214]
[1750859300318,10.7963,2441.6,2441.2,4.09628392]
[1750859300518,0.204,2441.7,2441.0,0.7526]
[1750859300813,10.0,2441.8,2441.0,0.7526]
[1750859300814,0.204,2441.8,2441.4,4.29997258]
[1750859301011,4.29944417,2441.8,2441.4,0.204]
[1750859301212,4.09551814,2441.7,2441.4,0.204]
[1750859301636,4.09584271,2441.5,2441.4,0.204]
[1750859301802,4.09584271,2441.5,2440.7,4.86568378]
[1750859301803,0.9728,2441.4,2440.5,2.227]
[1750859302002,4.09643338,2441.2,2441.0,0.2048]
[1750859302213,0.2048,2441.3,2441.0,0.2048]
[1750859302403,4.09637133,2441.2,2440.4,0.7778]
[1750859302597,0.2048,2441.3,2440.8,0.2048]
[1750859302598,7.44,2441.1,2440.8,0.2048]
[1750859302798,7.44,2441.1,2440.6,4.09734717]
[1750859302799,0.744,2441.0,2440.6,4.09734717]
[1750859303023,11.74140767,2441.1,2440.6,4.30214717]
[1750859303222,4.09669023,2441.0,2440.6,0.2048]
[1750859303532,7.6448,2441.1,2440.6,4.30205698]
[1750859303905,0.768,2441.4,2440.7,0.833]
[1750859304108,14.136,2442.2,2441.2,4.09621732]
[1750859304109,0.7508,2441.7,2441.2,4.09621732]
[1750859304401,0.7508,2441.7,2441.4,4.09597805]
[1750859304592,4.09489418,2442.1,2441.4,4.09597805]
[1750859304594,2.227,2442.5,2441.4,0.40959781]
[1750859304793,2.227,2443.0,2441.2,2.227]
[1750859305034,4.09460108,2442.3,2441.7,4.91072254]
[1750859305206,0.81889593,2442.3,2441.8,4.09533611]
[1750859305393,10.0,2442.2,2441.7,4.91075978]
[1750859305593,10.0,2442.2,2441.8,4.09528591]
[1750859305794,4.91340238,2442.3,2441.8,4.09528591]
[1750859306031,0.81889593,2442.3,2441.9,4.09516938]
[1750859306217,10.81889593,2442.3,2441.8,4.09525043]
[1750859306419,10.0,2442.3,2441.9,4.09516443]
[1750859306799,10.0,2442.3,2441.8,4.09532511]
[1750859307003,10.0,2442.3,2441.9,4.09507834]
[1750859307231,14.09453586,2442.3,2441.8,4.09526804]
[1750859307415,4.09469108,2442.2,2441.7,4.91073198]
[1750859307616,4.09469108,2442.2,2441.7,4.09544531]
[1750859307927,14.09458317,2442.3,2441.8,4.09529976]
[1750859308127,10.0,2442.3,2441.9,4.09517179]
[1750859308331,4.09466874,2442.2,2441.4,0.7817]
[1750859308504,4.09466874,2442.2,2441.6,4.09552415]
[1750859308712,15.83798504,2442.3,2441.8,4.09523946]
[1750859308907,11.7434,2442.3,2441.5,4.09584271]
[1750859309147,10.0,2442.4,2441.5,4.09584271]
[1750859309320,7.404,2442.5,2441.4,0.7817]
[1750859309502,11.49824432,2442.5,2441.9,4.09509149]
[1750859309837,7.404,2442.5,2441.5,4.09584271]
[1750859310036,0.7762,2443.3,2442.1,0.8062]
[1750859310196,4.09376264,2442.8,2442.3,4.09448229]
[1750859310395,4.09363614,2442.9,2442.4,4.09429947]
[1750859310637,10.0,2443.1,2442.6,4.09384162]
[1750859310806,10.0,2443.1,2442.8,4.09364224]
[1750859311006,0.7762,2443.3,2442.8,4.09363318]
[1750859311229,0.7762,2443.3,2442.5,4.09406388]
[1750859311433,10.0,2443.2,2442.2,4.09466874]
[1750859311601,11.59502,2443.3,2442.6,4.09389651]
[1750859311801,4.09299279,2443.2,2442.3,4.09446327]
[1750859311999,4.09299279,2443.2,2442.1,4.90087987]
[1750859312228,4.09376455,2442.8,2442.2,4.09452027]
[1750859312450,10.0,2442.9,2442.3,4.09440229]
[1750859312598,10.0,2442.9,2442.1,7.12697587]
[1750859312802,10.0,2442.9,2442.7,4.09374056]
[1750859313026,10.0,2442.9,2442.8,4.093663]
[1750859313339,10.0,2442.9,2442.1,0.8062]
[1750859313533,14.09352472,2442.9,2442.4,4.09425039]
[1750859313735,10.0,2442.9,2442.4,4.09425039]
[1750859313941,11.40933082,2442.9,2442.4,0.204]
[1750859314142,11.40933082,2442.9,2442.3,0.204]
[1750859314143,4.09433344,2442.4,2442.3,0.204]
[1750859314301,4.09433344,2442.4,2442.0,0.204]
[1750859314302,4.0945258,2442.3,2442.0,0.204]
[1750859314500,0.204,2442.4,2442.0,4.29896486]
[1750859314727,0.204,2442.4,2442.0,0.204]
[1750859314933,4.29837769,2442.4,2442.0,0.204]
[1750859315236,0.204,2442.4,2442.0,4.29895644]
[1750859315606,0.204,2442.4,2442.0,0.204]
[1750859315808,4.29837077,2442.4,2442.0,0.204]
[1750859316008,0.204,2442.4,2442.0,0.204]
[1750859316842,4.29838707,2442.4,2442.0,0.204]
[1750859317638,10.8311,2442.3,2441.2,12.226]
[1750859317838,5.12584347,2442.3,2441.8,0.204]
[1750859318138,0.204,2442.1,2441.7,0.204]
[1750859318326,4.29886151,2442.1,2441.7,0.204]
[1750859318645,11.67997698,2442.1,2441.7,0.204]
[1750859318835,7.585,2442.1,2441.7,0.204]
[1750859319043,7.585,2442.1,2441.8,4.09519738]
[1750859319340,7.585,2442.1,2441.7,0.204]
[1750859319538,12.72654093,2442.1,2441.4,4.09594385]
[1750859319740,4.09559295,2441.7,2441.3,0.2048]
[1750859320033,0.204,2441.7,2441.3,0.2048]
[1750859320235,4.29954058,2441.7,2441.3,0.2048]
[1750859320413,5.9351258,2441.7,2440.8,0.7803]
[1750859320615,10.0,2441.9,2440.8,0.7803]
[1750859320616,4.0957789,2441.6,2441.0,4.09655797]
[1750859320817,0.989,2441.5,2441.0,0.2048]
[1750859321036,0.785,2441.5,2440.9,4.09684148]
[1750859321344,4.30103329,2441.3,2440.9,0.2048]
[1750859321642,0.2048,2441.3,2440.9,0.2048]
[1750859321847,4.30097908,2441.3,2440.9,0.2048]
[1750859322028,7.5718,2441.3,2440.9,0.2048]
[1750859322426,11.66804379,2441.3,2440.9,0.2048]
[1750859322626,14.03588558,2441.3,2440.9,0.2048]
[1750859322830,13.83103332,2441.3,2440.8,0.34201188]
[1750859323021,0.2048,2441.1,2440.8,4.43897475]
[1750859323224,7.366,2441.3,2440.9,0.2048]
[1750859323442,7.366,2441.3,2440.8,0.34201188]
[1750859323443,4.09655405,2441.1,2440.8,0.34201188]
[1750859323618,4.30134815,2441.1,2440.8,0.34201188]
[1750859323814,1.0288,2441.0,2440.8,0.34201188]
[1750859324046,0.824,2441.0,2440.8,0.34201188]
[1750859324224,0.2048,2441.1,2440.8,4.43898408]
[1750859324428,0.2048,2441.1,2440.8,0.34201188]
[1750859324645,0.2048,2441.1,2440.8,4.43901643]
[1750859324945,2.149,2441.5,2440.7,0.2048]
[1750859324946,0.8292,2441.6,2440.9,0.8219]
[1750859325145,4.0959326,2441.5,2441.0,4.09659429]
[1750859325477,4.09561457,2441.7,2441.3,4.30087252]
[1750859325478,0.204,2441.7,2441.3,4.30087252]
[1750859325644,0.204,2441.7,2441.3,0.2048]
[1750859325815,2.24104328,2441.7,2440.9,4.9187012]
[1750859326011,2.24104328,2441.7,2440.4,4.09763882]
[1750859326012,0.2048,2441.2,2440.8,0.2048]
[1750859326247,4.09664251,2441.1,2440.8,0.2048]
[1750859326744,4.30120464,2441.2,2440.8,0.2048]
[1750859326934,0.2048,2441.2,2440.8,0.2048]
[1750859327133,4.30131208,2441.2,2440.8,0.2048]
[1750859327342,0.2048,2441.2,2440.8,4.30180203]
[1750859327644,4.09669318,2441.0,2440.8,0.2048]
[1750859327845,0.2048,2441.2,2440.8,0.2048]
[1750859328347,0.2048,2441.2,2440.8,4.30180615]
[1750859328852,4.09654101,2441.1,2440.8,0.2048]
[1750859329029,4.92561592,2441.0,2440.5,4.09747693]
[1750859329345,1.0336,2441.0,2440.6,4.09725469]
[1750859329916,11.0336,2441.0,2440.5,0.2048]
[1750859330118,10.0,2440.7,2440.0,0.7649]
[1750859330319,10.0,2440.5,2439.4,0.7733]
[1750859330519,10.0,2440.5,2438.3,9.827]
[1750859330520,4.09836065,2440.0,2439.3,4.61181623]
[1750859330756,11.64516065,2440.0,2439.6,0.2048]
[1750859330917,4.09880662,2439.8,2439.6,0.2048]
[1750859331114,4.09852862,2439.9,2439.3,0.51234493]
[1750859331319,4.30340962,2439.9,2439.4,4.30412904]
[1750859331620,0.2048,2439.9,2439.4,0.2048]
[1750859332053,10.0,2440.1,2439.7,4.09872811]
[1750859332319,10.0,2440.1,2439.8,4.09868861]
[1750859332520,7.338,2440.3,2440.0,4.09835271]
[1750859332751,7.338,2440.3,2439.9,4.3033084]
[1750859332752,10.0,2440.3,2439.9,4.3033084]
[1750859332922,10.0,2440.5,2440.1,4.09806621]
[1750859333121,11.63923892,2440.6,2440.2,0.2048]
[1750859333437,11.63923892,2440.6,2440.0,4.09828372]
[1750859333438,14.09754918,2440.5,2440.0,4.09828372]
[1750859333752,10.2048,2440.5,2440.1,4.09814661]
[1750859334459,4.09770372,2440.4,2440.0,0.2048]
[1750859334624,10.2048,2440.5,2440.0,0.2048]
[1750859334625,10.2048,2440.5,2440.0,4.30313741]
[1750859334823,10.0,2440.5,2440.2,4.09799076]
[1750859335020,10.0,2440.7,2440.6,4.09721101]
[1750859335322,10.0,2440.7,2440.5,4.09745763]
[1750859335543,0.2048,2440.8,2440.7,4.09718523]
[1750859335740,0.8257,2441.1,2440.7,4.09718523]
[1750859335741,7.35,2441.1,2440.9,4.09681496]
[1750859335922,7.348,2441.2,2441.0,4.09665993]
[1750859336123,7.348,2441.2,2441.0,0.2048]
[1750859336319,5.11953987,2441.4,2441.0,0.2048]
[1750859336556,11.44424306,2441.3,2441.0,0.2048]
[1750859336850,4.09651386,2441.1,2440.6,4.09734079]
[1750859337051,0.2048,2441.1,2440.7,0.2048]
[1750859337257,0.2048,2440.9,2440.4,4.30238004]
[1750859337443,11.64467875,2440.9,2440.4,4.30238004]
[1750859337756,7.5478,2440.9,2440.4,0.2048]
[1750859338054,10.0,2441.0,2440.5,4.0974093]
[1750859338349,14.09652213,2441.1,2440.6,4.09726834]
[1750859338552,4.09677458,2441.0,2440.4,4.09762612]
[1750859338920,12.14375221,2441.1,2440.3,4.09777147]
[1750859339117,12.14375221,2441.1,2440.2,0.7949]
[1750859339349,4.09725468,2440.7,2440.2,4.8929064]
[1750859339554,11.43309097,2440.8,2440.2,4.8929064]
[1750859339848,7.336,2440.8,2440.3,4.09785572]
[1750859340048,7.336,2440.8,2440.3,4.09780536]
[1750859340353,8.1121,2440.8,2440.2,0.7949]
[1750859340571,10.81121,2440.7,2439.9,4.86996172]
[1750859340720,10.0,2440.7,2440.3,4.09781067]
[1750859340924,14.09718524,2440.7,2440.0,4.09830033]
[1750859341123,14.09719598,2440.7,2440.0,4.09827802]
[1750859341355,14.09719598,2440.7,2439.9,4.87004094]
[1750859341356,4.0973531,2440.6,2439.9,4.87004094]
[1750859341657,4.09745055,2440.6,2439.9,4.87008628]
[1750859341856,4.09752099,2440.5,2439.9,0.7716]
[1750859342070,2.84558019,2440.6,2439.7,4.09878481]
[1750859342071,4.09804339,2440.2,2439.7,4.09878481]
[1750859342362,11.42775349,2440.4,2439.9,4.09851805]
[1750859342560,0.7854,2440.2,2438.7,4.10044928]
[1750859342721,4.09895593,2439.7,2439.3,0.8075]
[1750859342922,4.09895593,2439.7,2439.0,4.09991447]
[1750859342923,0.7854,2439.6,2438.6,0.8075]
[1750859343226,10.0,2439.5,2438.6,0.8075]
[1750859343446,4.88452788,2439.6,2439.0,4.09994965]
[1750859343619,4.09953675,2439.3,2438.6,5.2251826]
[1750859343825,4.10036563,2438.9,2438.3,0.7629]
[1750859344033,4.10036563,2438.9,2438.0,0.7629]
[1750859344034,7.337,2438.8,2438.0,0.7629]
[1750859344282,10.0,2438.6,2438.0,4.86461182]
[1750859344456,10.0,2438.7,2437.7,0.7629]
[1750859344635,4.10095244,2438.5,2437.9,4.10180076]
[1750859344958,7.345,2438.4,2437.7,0.7629]
[1750859345256,7.342,2438.3,2437.9,4.10173159]
[1750859345468,12.19983395,2438.3,2437.7,4.86506303]
[1750859345840,12.19987147,2438.3,2437.6,4.10233808]
[1750859346043,12.19987147,2438.3,2437.7,4.1022275]
[1750859346356,8.0986,2438.3,2437.9,4.10187175]
[1750859346547,4.10111095,2438.4,2438.0,4.10166371]
[1750859346548,7.34,2438.4,2438.0,4.10166371]
[1750859346755,10.0,2438.6,2438.2,4.1013716]
[1750859346947,10.0,2438.5,2438.0,4.10158729]
[1750859347151,10.0,2438.5,2437.5,2.9787]
[1750859347152,0.55,2438.4,2437.6,4.10239579]
[1750859347325,0.55,2438.4,2437.5,0.8287]
[1750859347532,4.65108144,2438.4,2437.9,4.10187137]
[1750859347775,10.0,2438.5,2437.5,0.8287]
[1750859347928,0.2048,2438.3,2438.1,4.10154931]
[1750859348130,7.5438,2438.3,2438.1,4.10154931]
[1750859348468,7.5438,2438.3,2438.0,4.10171845]
[1750859348666,7.5438,2438.3,2438.2,4.10138626]
[1750859348867,17.334,2438.6,2438.3,4.10108399]
[1750859349178,7.334,2438.6,2438.2,4.30613488]
[1750859349361,7.334,2438.6,2438.3,4.10113169]
[1750859349668,7.336,2438.8,2438.2,4.10126518]
[1750859349846,7.336,2438.8,2437.9,4.10186708]
[1750859349847,7.333,2439.2,2438.8,4.10037723]
[1750859350056,0.2048,2439.4,2439.3,4.09953675]
[1750859350231,0.2048,2439.8,2439.3,0.2048]
[1750859350437,0.2048,2439.8,2439.4,4.09933039]
[1750859350667,0.55,2439.8,2439.1,0.2048]
[1750859350970,0.9742,2439.3,2438.7,4.90846324]
[1750859351169,0.9742,2439.3,2438.6,0.2048]
[1750859351170,8.1094,2439.3,2438.6,0.2048]
[1750859351375,0.2048,2439.0,2438.6,4.30543686]
[1750859351574,0.2048,2439.0,2438.7,4.1005389]
[1750859351892,10.0,2438.9,2438.4,4.10104986]
[1750859352194,17.5448,2438.9,2438.6,4.10070981]
[1750859352499,17.5448,2438.9,2438.7,4.10054195]
[1750859352706,10.2048,2438.9,2438.8,4.10037723]
[1750859352864,10.2048,2438.9,2438.6,4.10071352]
[1750859352865,10.0,2438.9,2438.6,4.30540458]
[1750859353609,10.0,2438.9,2438.7,4.10054537]
[1750859353781,0.2048,2439.1,2438.3,4.90539879]
[1750859353782,7.343,2439.1,2438.5,4.10084546]
[1750859353980,7.343,2439.1,2438.8,0.2048]
[1750859354299,7.343,2439.1,2438.9,4.10020265]
[1750859354490,7.342,2439.2,2439.0,4.100041]
[1750859354688,17.342,2439.2,2438.8,0.2048]
[1750859354872,10.0,2439.1,2439.0,4.09993848]